fUST/lending_fUST_20260624
["ID","MTS","AMOUNT","RATE_DAILY","PERIOD"]
[426305685,1782262239000,-310.29085503,0.00020628,2]
[426305688,1782262239000,-500.0,0.00020799,2]
[426305691,1782262239000,-213.18,0.00020928,2]
[426305690,1782262239000,-837.22,0.00020799,2]
[426305693,1782262239000,-159.75014888,0.00020931,2]
[426305694,1782262239000,-426.17116462,0.00020931,2]
[426305672,1782262239000,-194.05932572,0.0002062,2]
[426305684,1782262239000,-189.15227014,0.00020628,2]
[426305673,1782262239000,-197.57408818,0.0002062,2]
[426305655,1782262239000,-219.25856194,0.00020583,2]
[426305666,1782262239000,-474.41765361,0.00020583,2]
[426305649,1782262239000,-323.72983432,0.00020576,2]
[426305650,1782262239000,-227.64796002,0.00020582,2]
[426305652,1782262239000,-511.5896966,0.00020583,2]
[426305651,1782262239000,-191.80294083,0.00020583,2]
[426305696,1782262239000,-346.34958637,0.00020931,2]
[426305656,1782262239000,-270.84475553,0.00020583,2]
[426305657,1782262239000,-172.59574354,0.00020583,2]
[426305654,1782262239000,-203.91222503,0.00020583,2]
[426305653,1782262239000,-160.28616868,0.00020583,2]
[426305658,1782262239000,-199.64968154,0.00020583,2]
[426305660,1782262239000,-162.71099752,0.00020583,2]
[426305661,1782262239000,-191.22971595,0.00020583,2]
[426305659,1782262239000,-187.82406203,0.00020583,2]
[426305664,1782262239000,-182.72535463,0.00020583,2]
[426305662,1782262239000,-158.89319306,0.00020583,2]
[426305663,1782262239000,-165.71386733,0.00020583,2]
[426305665,1782262239000,-158.98069694,0.00020583,2]
[426305669,1782262239000,-204.59006883,0.00020583,2]
[426305667,1782262239000,-200.30233953,0.00020583,2]
[426305670,1782262239000,-176.24150655,0.00020583,2]
[426305668,1782262239000,-192.00560286,0.00020583,2]
[426305671,1782262239000,-163.23560832,0.00020583,2]
[426305699,1782262239000,-352.20441305,0.00020931,2]
[426305686,1782262239000,-500.0,0.00020799,2]
[426305695,1782262239000,-158.34884435,0.00020931,2]
[426305728,1782262239000,-315.32548363,0.00020938,2]
[426305727,1782262239000,-159.21204064,0.00020938,2]
[426305730,1782262239000,-169.15872933,0.00020938,2]
[426305732,1782262239000,-162.57610515,0.00020938,2]
[426305731,1782262239000,-183.34441581,0.00020938,2]
[426305733,1782262239000,-320.57233737,0.00020938,2]
[426305735,1782262239000,-407.82445005,0.00020938,2]
[426305737,1782262239000,-152.92307306,0.00020938,2]
[426305736,1782262239000,-438.51712387,0.00020938,2]
[426305741,1782262239000,-160.15509369,0.00020938,2]
[426305739,1782262239000,-168.126292,0.00020938,2]
[426305740,1782262239000,-159.1496371,0.00020938,2]
[426305738,1782262239000,-541.68951107,0.00020938,2]
[426305743,1782262239000,-235.20199399,0.00020938,2]
[426305745,1782262239000,-422.65843617,0.00020938,2]
[426305744,1782262239000,-159.75014887,0.00020938,2]
[426305747,1782262239000,-212.15268902,0.00020938,2]
[426305746,1782262239000,-190.06324192,0.00020938,2]
[426305748,1782262239000,-189.20183045,0.00020938,2]
[426305749,1782262239000,-210.56163379,0.00020938,2]
[426305697,1782262239000,-322.72742813,0.00020931,2]
[426305729,1782262239000,-319.76089202,0.00020938,2]
[426305726,1782262239000,-159.14958442,0.00020938,2]
[426305742,1782262239000,-358.05418465,0.00020938,2]
[426305725,1782262239000,-160.49207695,0.00020938,2]
[426305698,1782262239000,-324.6389119,0.00020931,2]
[426305724,1782262239000,-341.05979773,0.00020938,2]
[426305700,1782262239000,-432.01462171,0.00020931,2]
[426305702,1782262239000,-374.24167884,0.00020931,2]
[426305703,1782262239000,-411.27666308,0.00020931,2]
[426305701,1782262239000,-394.46945961,0.00020931,2]
[426305707,1782262239000,-204.97916634,0.00020931,2]
[426305706,1782262239000,-162.60196348,0.00020931,2]
[426305705,1782262239000,-249.48387622,0.00020931,2]
[426305708,1782262239000,-404.87876949,0.00020931,2]
[426305704,1782262239000,-247.58579343,0.00020931,2]
[426305721,1782262239000,-160.03041219,0.00020931,2]
[426305712,1782262239000,-177.04936259,0.00020931,2]
[426305711,1782262239000,-708.88620748,0.00020931,2]
[426305710,1782262239000,-162.81427624,0.00020931,2]
[426305714,1782262239000,-156.14682622,0.00020931,2]
[426305713,1782262239000,-301.23183829,0.00020931,2]
[426305716,1782262239000,-159.75019915,0.00020931,2]
[426305722,1782262239000,-301.0272294,0.00020931,2]
[426305719,1782262239000,-321.17574109,0.00020931,2]
[426305723,1782262239000,-383.60588166,0.00020938,2]
[426305709,1782262239000,-467.24025038,0.00020931,2]
[426305790,1782262240000,-489.24034269,0.00020984,2]
[426305780,1782262240000,-308.04636883,0.00020938,2]
[426305789,1782262240000,-200.0,0.00020984,2]
[426305788,1782262240000,-398.12314251,0.00020975,2]
[426305787,1782262240000,-593.91981822,0.00020975,2]
[426305786,1782262240000,-374.22381129,0.00020975,2]
[426305783,1782262240000,-330.04043911,0.00020975,2]
[426305785,1782262240000,-371.91815463,0.00020975,2]
[426305781,1782262240000,-362.63247575,0.00020975,2]
[426305782,1782262240000,-315.62610136,0.00020975,2]
[426305792,1782262240000,-366.50560107,0.00020984,2]
[426305784,1782262240000,-338.60937098,0.00020975,2]
[426305793,1782262240000,-399.29936309,0.00020984,2]
[426305803,1782262240000,-1029.3319038,0.00021299,2]
[426305791,1782262240000,-325.62855248,0.00020984,2]
[426305795,1782262240000,-417.15472785,0.00021158,2]
[426305796,1782262240000,-160.0,0.00021158,2]
[426305801,1782262240000,-868.74416231,0.00021293,2]
[426305800,1782262240000,-639.59,0.000212,2]
[426305798,1782262240000,-1426.5713,0.000212,2]
[426305799,1782262240000,-431.05,0.000212,2]
[426305802,1782262240000,-790.69608934,0.00021293,2]
[426305797,1782262240000,-540.85237369,0.000212,2]
[426305808,1782262240000,-540.85237369,0.000218,2]
[426305804,1782262240000,-181.89855879,0.0002134,2]
[426305779,1782262240000,-326.47121665,0.00020938,2]
[426305794,1782262240000,-600.0,0.00020986,2]
[426305772,1782262240000,-632.55687147,0.00020938,2]
[426305754,1782262240000,-375.31649165,0.00020938,2]
[426305774,1782262240000,-170.55054608,0.00020938,2]
[426305806,1782262240000,-189.229264,0.00021439,2]
[426305750,1782262240000,-167.89045128,0.00020938,2]
[426305753,1782262240000,-345.19148707,0.00020938,2]
[426305751,1782262240000,-160.12262881,0.00020938,2]
[426305752,1782262240000,-313.72250454,0.00020938,2]
[426305757,1782262240000,-414.61691617,0.00020938,2]
[426305758,1782262240000,-353.9917526,0.00020938,2]
[426305755,1782262240000,-375.64812406,0.00020938,2]
[426305759,1782262240000,-220.64617705,0.00020938,2]
[426305756,1782262240000,-158.5971328,0.00020938,2]
[426305762,1782262240000,-315.82269389,0.00020938,2]
[426305763,1782262240000,-382.45943191,0.00020938,2]
[426305776,1782262240000,-358.80286548,0.00020938,2]
[426305764,1782262240000,-163.12956138,0.00020938,2]
[426305761,1782262240000,-322.82631773,0.00020938,2]
[426305760,1782262240000,-325.42199503,0.00020938,2]
[426305765,1782262240000,-317.78638611,0.00020938,2]
[426305767,1782262240000,-365.45070927,0.00020938,2]
[426305769,1782262240000,-155.915032,0.00020938,2]
[426305768,1782262240000,-317.96139387,0.00020938,2]
[426305770,1782262240000,-337.18630639,0.00020938,2]
[426305773,1782262240000,-400.60467906,0.00020938,2]
[426305778,1782262240000,-309.42652994,0.00020938,2]
[426305771,1782262240000,-694.99532984,0.00020938,2]
[426305777,1782262240000,-352.4830131,0.00020938,2]
[426305775,1782262240000,-224.21637108,0.00020938,2]
[426305766,1782262240000,-331.42773465,0.00020938,2]
[426305807,1782262240000,-540.85237369,0.000216,2]
[426305844,1782262240000,-1029.3319038,0.00025344,2]
[426305809,1782262240000,-1042.49299477,0.00021826,2]
[426305839,1782262240000,-189.229264,0.00024903,2]
[426305842,1782262240000,-3529.939089,0.00025273,14]
[426305866,1782262240000,-1426.563,0.000255,3]
[426305841,1782262240000,-160.0,0.00025273,14]
[426305843,1782262240000,-6899.878179,0.00025273,14]
[426305845,1782262240000,-240.32,0.00025383,3]
[426305847,1782262240000,-961.3,0.00025434,3]
[426305846,1782262240000,-864.0,0.00025393,10]
[426305849,1782262240000,-9114.29066901,0.0002544,2]
[426305850,1782262240000,-1000.0,0.00025443,2]
[426305848,1782262240000,-480.65,0.00025434,3]
[426305853,1782262240000,-1000.0,0.00025443,2]
[426305840,1782262240000,-258.987728,0.00025178,14]
[426305854,1782262240000,-1000.0,0.00025443,2]
[426305855,1782262240000,-1000.0,0.00025443,2]
[426305856,1782262240000,-1000.0,0.00025443,2]
[426305857,1782262240000,-1000.0,0.00025443,2]
[426305858,1782262240000,-1000.0,0.00025443,2]
[426305859,1782262240000,-1000.0,0.00025443,2]
[426305861,1782262240000,-1000.0,0.00025443,2]
[426305860,1782262240000,-1000.0,0.00025443,2]
[426305863,1782262240000,-710662.2766,0.00025444,2]
[426305864,1782262240000,-222.64,0.00025444,2]
[426305862,1782262240000,-190.91,0.00025444,7]
[426305865,1782262240000,-1426.563,0.000255,3]
[426305805,1782262240000,-540.85237369,0.000214,2]
[426305851,1782262240000,-1000.0,0.00025443,2]
[426305838,1782262240000,-533.0,0.000241,2]
[426305852,1782262240000,-1000.0,0.00025443,2]
[426305836,1782262240000,-388.11,0.000241,2]
[426305837,1782262240000,-1652.32,0.000241,2]
[426305815,1782262240000,-1770.3818,0.000226,2]
[426305812,1782262240000,-189.229264,0.00022305,2]
[426305810,1782262240000,-948.83530721,0.00021826,2]
[426305816,1782262240000,-578.6799,0.000226,2]
[426305813,1782262240000,-1290.7,0.000226,2]
[426305811,1782262240000,-540.85237369,0.00022,2]
[426305814,1782262240000,-479.71,0.000226,2]
[426305818,1782262240000,-1152.46236238,0.00022624,2]
[426305819,1782262240000,-1077.72452053,0.00022625,2]
[426305820,1782262240000,-138.5173067,0.00022625,2]
[426305823,1782262240000,-720.0,0.00023085,10]
[426305821,1782262240000,-1106.97452508,0.00022625,2]
[426305817,1782262240000,-577.745,0.000226,2]
[426305824,1782262240000,-189.229264,0.00023171,2]
[426305834,1782262240000,-1499.705,0.000241,2]
[426305835,1782262240000,-1499.7,0.000241,2]
[426305832,1782262240000,-1029.3319038,0.00023996,2]
[426305830,1782262240000,-1389.99065969,0.00023824,2]
[426305831,1782262240000,-1265.11374295,0.00023824,2]
[426305829,1782262240000,-1500.0,0.00023678,2]
[426305833,1782262240000,-189.229264,0.00024037,2]
[426305826,1782262240000,-720.99,0.0002366,3]
[426305827,1782262240000,-1500.0,0.0002367,2]
[426305825,1782262240000,-1001.072034,0.000236,2]
[426305822,1782262240000,-1029.3319038,0.00022647,2]
[426305828,1782262240000,-2350.059946,0.0002367,2]
[426305909,1782262241000,-237.302891,0.00026486,2]
[426305907,1782262241000,-237.302891,0.00026486,2]
[426305910,1782262241000,-237.302891,0.00026486,2]
[426305911,1782262241000,-500.0,0.00026486,2]
[426305908,1782262241000,-237.302891,0.00026486,2]
[426305905,1782262241000,-151.0,0.00026486,2]
[426305903,1782262241000,-500.0,0.00026436,2]
[426305904,1782262241000,-837.22,0.00026436,2]
[426305901,1782262241000,-220.318156,0.00026315,14]
[426305902,1782262241000,-500.0,0.00026436,2]
[426305900,1782262241000,-190.159078,0.00026315,14]
[426305912,1782262241000,-500.0,0.00026486,2]
[426305906,1782262241000,-153.000621,0.00026486,2]
[426305913,1782262241000,-500.0,0.00026486,2]
[426305927,1782262241000,-269.693488,0.00026486,2]
[426305916,1782262241000,-151.0,0.00026486,2]
[426305914,1782262241000,-640.58071433,0.00026486,2]
[426305917,1782262241000,-151.0,0.00026486,2]
[426305918,1782262241000,-151.0,0.00026486,2]
[426305925,1782262241000,-269.693488,0.00026486,2]
[426305924,1782262241000,-269.693488,0.00026486,2]
[426305921,1782262241000,-504.32388091,0.00026486,2]
[426305919,1782262241000,-500.0,0.00026486,2]
[426305920,1782262241000,-500.0,0.00026486,2]
[426305922,1782262241000,-269.693488,0.00026486,2]
[426305923,1782262241000,-269.693488,0.00026486,2]
[426305926,1782262241000,-269.693488,0.00026486,2]
[426305928,1782262241000,-269.693488,0.00026486,2]
[426305899,1782262241000,-160.0,0.00026315,14]
[426305915,1782262241000,-151.0,0.00026486,2]
[426305897,1782262241000,-500.0,0.00026163,2]
[426305867,1782262241000,-1426.56,0.000255,3]
[426305895,1782262241000,-500.0,0.00026163,2]
[426305869,1782262241000,-1293.12,0.000255,3]
[426305871,1782262241000,-735.0486,0.000255,2]
[426305929,1782262241000,-269.693488,0.00026486,2]
[426305868,1782262241000,-303.74,0.000255,3]
[426305872,1782262241000,-151.0,0.000258,15]
[426305870,1782262241000,-1684.7838,0.000255,2]
[426305874,1782262241000,-1000.0,0.00025993,2]
[426305877,1782262241000,-419.25378,0.00026125,14]
[426305873,1782262241000,-201.434901,0.00025956,14]
[426305876,1782262241000,-550.0,0.00025993,2]
[426305875,1782262241000,-950.0,0.00025993,2]
[426305880,1782262241000,-151.5,0.00026163,2]
[426305886,1782262241000,-151.5,0.00026163,2]
[426305884,1782262241000,-500.0,0.00026163,2]
[426305879,1782262241000,-500.0,0.00026163,2]
[426305885,1782262241000,-251.39099117,0.00026163,2]
[426305882,1782262241000,-209.71611797,0.00026163,2]
[426305881,1782262241000,-500.0,0.00026163,2]
[426305883,1782262241000,-500.0,0.00026163,2]
[426305878,1782262241000,-151.5,0.00026163,2]
[426305888,1782262241000,-175.4911037,0.00026163,2]
[426305889,1782262241000,-500.0,0.00026163,2]
[426305891,1782262241000,-162.28068436,0.00026163,2]
[426305887,1782262241000,-500.0,0.00026163,2]
[426305890,1782262241000,-500.0,0.00026163,2]
[426305893,1782262241000,-500.0,0.00026163,2]
[426305892,1782262241000,-500.0,0.00026163,2]
[426305894,1782262241000,-500.0,0.00026163,2]
[426305898,1782262241000,-579.15346046,0.00026163,2]
[426305896,1782262241000,-500.0,0.00026163,2]
[426305930,1782262241000,-837.22,0.00026486,2]
[426305942,1782262241000,-837.22,0.00026486,2]
[426305935,1782262241000,-837.22,0.00026486,2]
[426305967,1782262241000,-1922.6,0.00026804,3]
[426305969,1782262241000,-173.38324402,0.00026941,7]
[426305968,1782262241000,-961.3,0.00026804,3]
[426305970,1782262241000,-243.14965934,0.00026941,7]
[426305972,1782262241000,-307.88,0.00027,2]
[426305974,1782262241000,-550.0,0.00027123,2]
[426305973,1782262241000,-456.85,0.00027,3]
[426305978,1782262241000,-342.28634,0.00027631,14]
[426305971,1782262241000,-369.9291,0.00027,2]
[426305975,1782262241000,-160.0,0.00027346,2]
[426305976,1782262241000,-160.0,0.00027346,2]
[426305977,1782262241000,-151.0,0.000276,17]
[426305980,1782262241000,-163.24,0.00027925,5]
[426305933,1782262241000,-837.22,0.00026486,2]
[426305965,1782262241000,-167.01528108,0.00026719,2]
[426305982,1782262241000,-302.15235,0.00028199,14]
[426305983,1782262241000,-797.0,0.000282,2]
[426305985,1782262241000,-151.0,0.000285,18]
[426305984,1782262241000,-246.3,0.000284,3]
[426305987,1782262241000,-1142.26776,0.00028546,120]
[426305986,1782262241000,-260.07486605,0.00028526,7]
[426305990,1782262241000,-240.0,0.00028656,2]
[426305991,1782262241000,-150.0,0.00028656,2]
[426305988,1782262241000,-427.54368372,0.00028629,5]
[426305989,1782262241000,-370.0,0.00028656,2]
[426305992,1782262241000,-424.05370517,0.00028696,2]
[426305993,1782262241000,-186.75668776,0.00029044,7]
[426305995,1782262241000,-239.074097,0.00029103,14]
[426305996,1782262241000,-486.29931868,0.0002911,7]
[426305994,1782262241000,-2117.963453,0.00029064,14]
[426305981,1782262241000,-1000.0,0.00027933,30]
[426305966,1782262241000,-480.64,0.00026753,3]
[426305979,1782262241000,-387.939994,0.0002769,14]
[426305961,1782262241000,-186.0,0.00026631,2]
[426305964,1782262241000,-167.01528109,0.00026719,2]
[426305931,1782262241000,-837.22,0.00026486,2]
[426305934,1782262241000,-837.22,0.00026486,2]
[426305932,1782262241000,-837.22,0.00026486,2]
[426305937,1782262241000,-837.22,0.00026486,2]
[426305938,1782262241000,-837.22,0.00026486,2]
[426305936,1782262241000,-837.22,0.00026486,2]
[426305939,1782262241000,-837.22,0.00026486,2]
[426305940,1782262241000,-837.22,0.00026486,2]
[426305943,1782262241000,-837.22,0.00026486,2]
[426305945,1782262241000,-837.22,0.00026486,2]
[426305948,1782262241000,-837.22,0.00026486,2]
[426305947,1782262241000,-837.22,0.00026486,2]
[426305944,1782262241000,-837.22,0.00026486,2]
[426305941,1782262241000,-837.22,0.00026486,2]
[426305951,1782262241000,-200.0,0.00026487,3]
[426305963,1782262241000,-151.0,0.000267,11]
[426305946,1782262241000,-837.22,0.00026486,2]
[426305959,1782262241000,-1842.0,0.00026631,2]
[426305957,1782262241000,-1419.0,0.00026631,2]
[426305960,1782262241000,-445.0,0.00026631,2]
[426305958,1782262241000,-2212.0,0.00026631,2]
[426305955,1782262241000,-500.0,0.00026586,2]
[426305962,1782262241000,-397.2552167,0.00026687,2]
[426305954,1782262241000,-6353.890361,0.00026536,14]
[426305952,1782262241000,-151.0,0.000265,10]
[426305953,1782262241000,-151.0,0.000265,12]
[426305950,1782262241000,-837.29174414,0.00026486,2]
[426305949,1782262241000,-837.22,0.00026486,2]
[426305956,1782262241000,-500.0,0.00026586,2]
[426306016,1782262242000,-244.0,0.00030726,30]
[426306015,1782262242000,-1000.0,0.00030726,30]
[426306017,1782262242000,-221.507475,0.00030742,14]
[426306018,1782262242000,-249.86541305,0.000309,120]
[426306019,1782262242000,-499.73082611,0.000309,120]
[426306020,1782262242000,-161.78112173,0.000309,120]
[426306022,1782262242000,-528.9385401,0.00031084,2]
[426306023,1782262242000,-151.0,0.000311,19]
[426306024,1782262242000,-151.0,0.000312,16]
[426306025,1782262242000,-160.0,0.0003137,14]
[426306027,1782262242000,-615.591151,0.0003137,14]
[426306026,1782262242000,-387.795575,0.0003137,14]
[426306012,1782262242000,-239.074097,0.00030282,120]
[426306021,1782262242000,-452.596659,0.00031012,14]
[426306010,1782262242000,-499.73082611,0.0003,120]
[426305998,1782262242000,-489.12941,0.0002926,14]
[426306011,1782262242000,-161.78112173,0.0003,120]
[426306028,1782262242000,-197.118769,0.0003137,14]
[426305997,1782262242000,-560.03416805,0.00029221,2]
[426305999,1782262242000,-151.0,0.000294,14]
[426306001,1782262242000,-1417.0,0.00029631,2]
[426306000,1782262242000,-560.03416805,0.00029448,2]
[426306002,1782262242000,-662.0,0.00029631,2]
[426306013,1782262242000,-151.0,0.000303,11]
[426306003,1782262242000,-1840.0,0.00029631,2]
[426306005,1782262242000,-186.0,0.00029631,2]
[426306007,1782262242000,-560.03416805,0.00029697,2]
[426306009,1782262242000,-249.86541305,0.0003,120]
[426306008,1782262242000,-528.9385401,0.00029969,2]
[426306006,1782262242000,-560.03416805,0.00029688,2]
[426306014,1782262242000,-150.85,0.00030724,5]
[426306004,1782262242000,-445.0,0.00029631,2]
[426306029,1782262242000,-420.399349,0.0003137,14]
[426306067,1782262242000,-3715.72626716,0.00033,2]
[426306030,1782262242000,-652.216455,0.00031693,120]
[426306070,1782262242000,-16269.72023898,0.00033,2]
[426306073,1782262242000,-4318.1455279,0.00033,2]
[426306065,1782262242000,-319869.60121806,0.00033,2]
[426306063,1782262242000,-217.46,0.00032877,120]
[426306072,1782262242000,-215840.15279331,0.00033,2]
[426306055,1782262242000,-161.78112173,0.000328,120]
[426306060,1782262242000,-1135.46874682,0.00032876,120]
[426306054,1782262242000,-499.73082611,0.000328,120]
[426306057,1782262242000,-705.987817,0.00032854,14]
[426306052,1782262242000,-300.0,0.00032743,10]
[426306053,1782262242000,-249.86541305,0.000328,120]
[426306050,1782262242000,-445.0,0.00032631,2]
[426306048,1782262242000,-151.0,0.000324,18]
[426306051,1782262242000,-186.0,0.00032631,2]
[426306046,1782262242000,-580.405264,0.0003234,120]
[426306049,1782262242000,-238.19168828,0.00032446,2]
[426306045,1782262242000,-192.000001,0.0003234,120]
[426306032,1782262242000,-172.283593,0.00031693,14]
[426306034,1782262242000,-165.812381,0.00031693,120]
[426306039,1782262242000,-161.78112173,0.000318,120]
[426306036,1782262242000,-151.0,0.000317,11]
[426306037,1782262242000,-249.86541305,0.000318,120]
[426306047,1782262242000,-1237.842529,0.0003234,120]
[426306033,1782262242000,-278.753165,0.00031693,14]
[426306035,1782262242000,-165.812381,0.00031693,14]
[426306041,1782262242000,-165.812381,0.0003234,120]
[426306040,1782262242000,-151.0,0.000321,17]
[426306043,1782262242000,-204.856655,0.0003234,14]
[426306042,1782262242000,-165.812381,0.0003234,14]
[426306044,1782262242000,-3425.527584,0.0003234,120]
[426306038,1782262242000,-499.73082611,0.000318,120]
[426306031,1782262242000,-192.524398,0.00031693,14]
[426306075,1782262243000,-167.01528108,0.00026719,2]
[426306076,1782262243000,-1689.83466942,0.00033,2]
[426306092,1782262246000,-1001.97867047,0.00030136,2]
[426306093,1782262246000,-981.06990157,0.00030136,2]
[426306103,1782262910000,-304.0,0.00017642,9]
[426306122,1782263355000,-177.257,0.00017542,2]
[426306121,1782263355000,-5000.0,0.00017193,2]
[426306123,1782263355000,-6869.40521549,0.00018,2]
[426306155,1782263432000,-3157.32590932,0.00018,2]
[426306419,1782263440000,-1228.6127421,0.00018,2]
[426306446,1782263446000,-6148.96750387,0.00018,2]
[426306447,1782263446000,-1690.82593191,0.00018,2]
[426306449,1782263446000,-182.601,0.00019476,2]
[426306451,1782263446000,-41768.26847422,0.0002,3]
[426306453,1782263446000,-7756.51564112,0.0002,2]
[426306450,1782263446000,-257.93,0.000197,2]
[426306452,1782263446000,-17528.57933575,0.0002,3]
[426306448,1782263446000,-70000.0,0.00018794,2]
[426306454,1782263446000,-1408.80377564,0.0002061,2]
[426306455,1782263446000,-161.86491716,0.00020628,2]
[426306457,1782263446000,-237.82766394,0.00020984,2]
[426306458,1782263446000,-323.72983431,0.00020984,2]
[426306464,1782263446000,-395.14817635,0.00020984,2]
[426306469,1782263446000,-281.3746486,0.00021,2]
[426306456,1782263446000,-299.63220227,0.00020984,2]
[426306465,1782263446000,-338.31745865,0.00020984,2]
[426306468,1782263446000,-3000.0,0.00021,2]
[426306466,1782263446000,-364.01871381,0.00020984,2]
[426306467,1782263446000,-605.04,0.0002099,3]
[426306461,1782263446000,-388.11865144,0.00020984,2]
[426306459,1782263446000,-409.18013767,0.00020984,2]
[426306460,1782263446000,-384.01120573,0.00020984,2]
[426306463,1782263446000,-159.16123894,0.00020984,2]
[426306462,1782263446000,-353.59337004,0.00020984,2]
[426306476,1782263447000,-155.13324705,0.00021012,2]
[426306475,1782263447000,-3000.0,0.0002101,2]
[426306471,1782263447000,-4000.0,0.00021,2]
[426306470,1782263447000,-46185.38664196,0.00021,2]
[426306474,1782263447000,-1617.5457894,0.00021,2]
[426306472,1782263447000,-50000.0,0.00021,2]
[426306473,1782263447000,-5312.37756323,0.00021,2]
[426306477,1782263447000,-378.30454028,0.00021012,2]
[426306478,1782263447000,-305.84614612,0.00021012,2]
[426306481,1782263447000,-3000.0,0.0002103,2]
[426306485,1782263447000,-3000.0,0.0002107,2]
[426306482,1782263447000,-3000.0,0.0002104,2]
[426306484,1782263447000,-3000.0,0.0002106,2]
[426306480,1782263447000,-3000.0,0.0002102,2]
[426306486,1782263447000,-2083.57007377,0.0002108,2]
[426306483,1782263447000,-3000.0,0.0002105,2]
[426306479,1782263447000,-366.16615677,0.00021012,2]
[426306505,1782264395000,-221.26522437,0.00018706,2]
[426306522,1782264632000,-247.61611725,0.00018151,2]
[426306524,1782264632000,-65.46339331,0.00018519,2]
[426306538,1782264632000,-1071.458,0.00018519,2]
[426306535,1782264632000,-274.24289103,0.00018519,2]
[426306536,1782264632000,-971.44294871,0.00018519,2]
[426306523,1782264632000,-925.9628136,0.00018334,2]
[426306861,1782264644000,-24.58502493,0.00020274,2]
[426306863,1782264646000,-1389.17339643,0.00020274,2]
[426306864,1782264675000,221.069445,0.00023746,120]
[426306893,1782265752000,-551.51506963,0.00019037,9]
[426306937,1782265832000,-1174.21379213,0.00019262,2]
[426306942,1782265832000,-67.23216362,0.00019262,2]
[426306946,1782265832000,-720.98792742,0.00020274,2]
[426306943,1782265832000,-498.0946084,0.00019456,2]
[426306945,1782265832000,-471.371149,0.00019712,2]
[426306944,1782265832000,-201.0767486,0.00019646,2]
[426306960,1782265840000,-3460.0,0.00020274,2]
[426306961,1782265840000,-3460.0,0.00020274,2]
[426306959,1782265840000,-2847.88309332,0.00020274,2]
[426307000,1782265841000,-3000.0,0.0002124,2]
[426306997,1782265841000,-3460.0,0.00021239,2]
[426306994,1782265841000,-3000.0,0.0002123,2]
[426306996,1782265841000,-3460.0,0.00021239,2]
[426306998,1782265841000,-3460.0,0.00021239,2]
[426306992,1782265841000,-2059.75868722,0.0002121,2]
[426306999,1782265841000,-3460.0,0.00021239,2]
[426307002,1782265841000,-300.0,0.0002125,2]
[426307003,1782265841000,-3000.0,0.0002126,2]
[426306993,1782265841000,-3000.0,0.0002122,2]
[426306995,1782265841000,-3460.0,0.00021239,2]
[426307004,1782265841000,-3000.0,0.0002127,2]
[426307017,1782265841000,-4056.39280265,0.00022,2]
[426307014,1782265841000,-160.0,0.00021569,2]
[426307013,1782265841000,-160.0,0.00021569,2]
[426307006,1782265841000,-3000.0,0.0002129,2]
[426307009,1782265841000,-3000.0,0.0002132,2]
[426307016,1782265841000,-4056.39280265,0.000218,2]
[426307011,1782265841000,-3000.0,0.0002134,2]
[426307008,1782265841000,-3000.0,0.0002131,2]
[426307007,1782265841000,-3000.0,0.000213,2]
[426307010,1782265841000,-3000.0,0.0002133,2]
[426307015,1782265841000,-4056.39280265,0.000216,2]
[426307012,1782265841000,-4226.087152,0.0002135,2]
[426307018,1782265841000,-7006.227424,0.000221,2]
[426307001,1782265841000,-3000.0,0.0002125,2]
[426307005,1782265841000,-3000.0,0.0002128,2]
[426306984,1782265841000,-3000.0,0.0002114,2]
[426306972,1782265841000,-3460.0,0.00020757,2]
[426306989,1782265841000,-3000.0,0.0002119,2]
[426306964,1782265841000,-600.0,0.00020678,2]
[426306965,1782265841000,-550.07163777,0.00020756,2]